bitfinex/quotes_BTCUSD_20251124
["timestamp","ask_amount","ask_price","bid_price","bid_amount"]
[1764025990721,3.07658919,88715.0,88714.0,4.07e-06]
[1764025990996,3.07558919,88715.0,88714.0,4.07e-06]
[1764025991357,3.07758919,88715.0,88714.0,4.07e-06]
[1764025991766,3.07858919,88715.0,88714.0,4.07e-06]
[1764025992191,3.07758919,88715.0,88714.0,4.07e-06]
[1764025992649,3.07858919,88715.0,88714.0,4.07e-06]
[1764025993012,2.96336788,88715.0,88714.0,4.07e-06]
[1764025993392,2.93322091,88715.0,88714.0,4.07e-06]
[1764025994020,2.91553441,88715.0,88714.0,4.07e-06]
[1764025994365,2.8847174,88715.0,88714.0,4.07e-06]
[1764025994700,2.8347174,88715.0,88714.0,4.07e-06]
[1764025995307,2.8847174,88715.0,88714.0,4.07e-06]
[1764025995509,2.8347174,88715.0,88714.0,4.07e-06]
[1764025995861,2.8847174,88715.0,88714.0,4.07e-06]
[1764025996693,2.8347174,88715.0,88714.0,4.07e-06]
[1764025997252,2.90240661,88715.0,88714.0,4.07e-06]
[1764025998969,2.95658843,88715.0,88714.0,4.07e-06]
[1764026000877,2.90658843,88715.0,88714.0,4.07e-06]
[1764026001071,2.95658843,88715.0,88714.0,4.07e-06]
[1764026001410,2.96702272,88715.0,88714.0,4.07e-06]
[1764026003729,3.08224403,88715.0,88714.0,4.07e-06]
[1764026004417,2.91702272,88715.0,88714.0,4.07e-06]
[1764026004556,2.88687575,88715.0,88714.0,4.07e-06]
[1764026005162,2.92975575,88715.0,88714.0,4.07e-06]
[1764026005594,2.93687575,88715.0,88714.0,4.07e-06]
[1764026006070,3.18467575,88715.0,88714.0,4.07e-06]
[1764026006273,3.13467575,88715.0,88714.0,4.07e-06]
[1764026006631,3.18467575,88715.0,88714.0,4.07e-06]
[1764026007316,3.16698654,88715.0,88714.0,4.07e-06]
[1764026007514,3.10986654,88715.0,88714.0,4.07e-06]
[1764026007712,3.11698654,88715.0,88714.0,4.07e-06]
[1764026007934,3.16698654,88715.0,88714.0,4.07e-06]
[1764026008132,3.15986654,88715.0,88714.0,4.07e-06]
[1764026008337,3.20724801,88715.0,88714.0,4.07e-06]
[1764026009328,3.16698654,88715.0,88714.0,4.07e-06]
[1764026009547,3.16690014,88715.0,88714.0,4.07e-06]
[1764026009748,3.16690014,88715.0,88674.0,0.02255452]
[1764026009749,0.01127624,88682.0,88674.0,0.02255452]
[1764026009949,0.02808119,88681.0,88675.0,0.01127713]
[1764026010152,0.02096119,88680.0,88676.0,0.02255401]
[1764026010354,0.02808119,88679.0,88676.0,0.02255401]
[1764026010556,0.02096119,88678.0,88676.0,0.02255401]
[1764026010760,0.02096119,88677.0,88676.0,0.02255401]
[1764026011250,0.02096119,88677.0,88676.0,0.03123401]
[1764026011679,0.02096119,88677.0,88676.0,0.00868]
[1764026011990,0.02096119,88677.0,88676.0,0.02789401]
[1764026012228,0.02096119,88677.0,88676.0,0.00634]
[1764026013461,0.02096119,88677.0,88676.0,0.03323401]
[1764026018866,0.02096119,88677.0,88676.0,0.02889401]
[1764026019087,0.02096119,88677.0,88676.0,0.00634]
[1764026019261,0.02096119,88677.0,88676.0,0.00750331]
[1764026020457,0.02096119,88677.0,88676.0,0.00316331]
[1764026020657,0.06002119,88677.0,88676.0,0.00316331]
[1764026021488,0.06002119,88677.0,88676.0,0.00116331]
[1764026021693,0.06002119,88677.0,88676.0,0.00316331]
[1764026021894,0.06002119,88677.0,88676.0,0.00216331]
[1764026022125,0.07471397,88677.0,88676.0,0.00116331]
[1764026022315,0.07471397,88677.0,88676.0,0.00216331]
[1764026022911,0.05170397,88677.0,88676.0,0.00216331]
[1764026023533,0.05170397,88677.0,88676.0,0.00316331]
[1764026024397,0.02808119,88677.0,88676.0,0.00316331]
[1764026025613,0.02096119,88677.0,88676.0,0.00750331]
[1764026025828,0.02808119,88677.0,88676.0,0.01184331]
[1764026026035,0.02808119,88677.0,88676.0,0.00750331]
[1764026026454,0.02096119,88677.0,88676.0,0.03005732]
[1764026026671,0.02096119,88677.0,88676.0,0.03439732]
[1764026027098,0.02096119,88677.0,88676.0,0.03005732]
[1764026027305,0.02096119,88677.0,88676.0,0.25559748]
[1764026027505,0.02096119,88677.0,88676.0,0.23738347]
[1764026027751,0.02096119,88677.0,88676.0,0.25993748]
[1764026027959,0.02096119,88677.0,88676.0,0.03005732]
[1764026028170,0.02096119,88677.0,88676.0,0.00316331]
[1764026028362,2.05991119,88677.0,88676.0,0.00316331]
[1764026028591,2.28544881,88677.0,88676.0,0.00316331]
[1764026028799,0.03609119,88677.0,88676.0,0.00316331]
[1764026032348,0.02096119,88677.0,88676.0,0.00750331]
[1764026032711,0.02808119,88677.0,88676.0,0.00750331]
[1764026035214,0.00712,88677.0,88676.0,0.00750331]
[1764026035434,0.00011859,88682.0,88676.0,0.00750331]
[1764026035637,0.00712,88678.0,88676.0,0.01068]
[1764026036019,0.00712,88678.0,88677.0,0.00434]
[1764026037297,0.01139483,88682.0,88677.0,0.00434]
[1764026037504,0.00712,88679.0,88677.0,0.00534]
[1764026037714,0.01513,88678.0,88677.0,0.001]
[1764026037889,0.03895,88678.0,88677.0,0.001]
[1764026038423,0.01127738,88673.0,88670.0,0.0002]
[1764026038543,0.01132,88671.0,88670.0,0.0002]
[1764026038985,0.02645,88671.0,88670.0,0.0002]
[1764026040132,0.05027,88671.0,88670.0,0.0012]
[1764026040483,0.02645,88671.0,88670.0,0.0012]
[1764026040919,0.01132,88671.0,88670.0,0.0022]
[1764026041333,0.011277,88676.0,88670.0,0.00354708]
[1764026041555,0.01127675,88678.0,88675.0,0.00434]
[1764026041757,0.00712,88678.0,88675.0,0.00553394]
[1764026042087,0.02259611,88683.0,88675.0,0.00434]
[1764026042296,0.00712,88677.0,88672.0,0.01127751]
[1764026042465,0.00712,88677.0,88673.0,0.02255477]
[1764026042691,0.00712,88678.0,88676.0,0.22987982]
[1764026042846,0.00011859,88682.0,88680.0,0.00434]
[1764026042847,0.00712,88681.0,88680.0,0.00434]
[1764026043256,0.00723859,88682.0,88680.0,0.00434]
[1764026043431,0.00011859,88682.0,88681.0,0.00868]
[1764026045915,0.00011859,88682.0,88681.0,0.00434]
[1764026046313,0.00011859,88682.0,88681.0,0.00868]
[1764026046892,0.00011859,88682.0,88681.0,0.00968]
[1764026047521,0.00011859,88682.0,88681.0,0.01068]
[1764026047892,0.00011859,88682.0,88681.0,0.01169019]
[1764026049198,0.00011859,88682.0,88681.0,0.03424293]
[1764026049637,0.00011859,88682.0,88681.0,0.00735019]
[1764026049842,0.00011859,88682.0,88681.0,0.01169019]
[1764026050016,0.00011859,88682.0,88681.0,0.02990293]
[1764026050651,0.00011859,88682.0,88681.0,0.00735019]
[1764026050846,0.00011859,88682.0,88681.0,0.01169019]
[1764026051627,0.00011859,88682.0,88681.0,0.00301019]
[1764026056737,0.04022859,88682.0,88681.0,0.00301019]
[1764026057499,0.06122407,88682.0,88681.0,0.00301019]
[1764026058130,0.06122407,88682.0,88681.0,0.00101019]
[1764026058332,0.06122407,88682.0,88681.0,0.00201019]
[1764026058873,0.06122407,88682.0,88681.0,0.00101019]
[1764026060185,0.04022859,88682.0,88681.0,0.00101019]
[1764026064608,0.05164859,88682.0,88681.0,0.00101019]
[1764026069900,0.05164859,88682.0,88681.0,0.00535019]
[1764026069901,0.00011859,88682.0,88681.0,0.00535019]
[1764026070326,0.00011859,88682.0,88681.0,0.00101019]
[1764026071741,0.00011859,88682.0,88681.0,0.00969019]
[1764026071904,0.00011859,88682.0,88681.0,0.00535019]
[1764026073343,0.00712,88685.0,88681.0,0.00535019]
[1764026073522,0.00720919,88685.0,88681.0,0.00434]
[1764026073728,0.00720919,88685.0,88684.0,0.00091832]
[1764026073930,8.919e-05,88685.0,88684.0,0.00091832]
[1764026075511,8.919e-05,88685.0,88684.0,0.00525832]
[1764026075740,8.919e-05,88685.0,88684.0,0.00625832]
[1764026076355,8.919e-05,88685.0,88684.0,0.00191832]
[1764026080621,0.04019919,88685.0,88684.0,0.00191832]
[1764026081498,0.06121123,88685.0,88684.0,0.00191832]
[1764026083368,0.06121123,88685.0,88684.0,0.00091832]
[1764026084687,0.38421123,88685.0,88684.0,0.00091832]
[1764026085664,0.38873225,88685.0,88684.0,0.00091832]
[1764026085861,2.38873225,88685.0,88684.0,0.00091832]
[1764026100808,2.02019102,88685.0,88684.0,0.00091832]
[1764026102944,2.04386102,88685.0,88684.0,0.00091832]
[1764026106748,2.36686102,88685.0,88684.0,0.00091832]
[1764026107356,2.33464102,88685.0,88684.0,0.00091832]
[1764026107945,2.32752102,88685.0,88684.0,0.03946832]
[1764026108097,0.10701753,88701.0,88684.0,0.03946832]
[1764026108098,0.01127433,88697.0,88684.0,0.03946832]
[1764026108274,0.34139446,88696.0,88695.0,0.01949]
[1764026108475,0.323,88696.0,88695.0,0.04289]
[1764026108874,0.323,88696.0,88686.0,0.01244]
[1764026108875,0.01127522,88690.0,88686.0,0.01244]
[1764026109077,0.01127535,88689.0,88686.0,0.01244]
[1764026109277,0.23677177,88693.0,88689.0,0.01515]
[1764026109499,0.23677662,88692.0,88690.0,0.0234]
[1764026109702,0.23677662,88692.0,88689.0,0.01515]
[1764026109901,0.23678313,88689.0,88686.0,0.03584]
[1764026110107,0.23678313,88689.0,88686.0,0.01244]
[1764026110527,0.23678313,88689.0,88686.0,0.03584]
[1764026110943,0.22551148,88688.0,88686.0,0.01244]
[1764026111157,0.01127497,88692.0,88686.0,0.01244]
[1764026111158,0.57216431,88695.0,88686.0,0.01244]
[1764026111333,0.0112751,88691.0,88688.0,0.01515]
[1764026111783,0.22550658,88690.0,88688.0,0.01515]
[1764026113849,0.01448291,88700.0,88689.0,0.04097]
[1764026114024,0.01448291,88700.0,88695.0,0.00434]
[1764026114025,0.02102221,88699.0,88695.0,0.00434]
[1764026114195,0.02102221,88698.0,88696.0,0.02455]
[1764026114402,0.323,88700.0,88699.0,0.01642]
[1764026114651,0.35801933,88700.0,88699.0,0.01642]
[1764026114854,0.35801933,88700.0,88699.0,0.04097]
[1764026115573,0.0210177,88700.0,88699.0,0.04097]
[1764026115815,0.03389977,88705.0,88699.0,0.04097]
[1764026115989,0.01127294,88708.0,88703.0,0.01642]
[1764026116135,0.00011873,88708.0,88704.0,0.02264]
[1764026116336,0.00011873,88708.0,88707.0,0.02786]
[1764026116786,0.00011873,88708.0,88707.0,0.05241]
[1764026116965,0.00011873,88708.0,88707.0,0.05141]
[1764026117185,0.01384549,88708.0,88707.0,0.05141]
[1764026117388,0.00011873,88708.0,88707.0,0.05141]
[1764026122357,0.32298351,88719.0,88707.0,0.06268306]
[1764026122559,0.32298351,88719.0,88718.0,0.02686]
[1764026122986,0.33425505,88719.0,88711.0,0.01101]
[1764026123186,0.01127179,88717.0,88711.0,0.01101]
[1764026123373,0.33425505,88719.0,88711.0,0.01101]
[1764026123374,0.01127166,88718.0,88711.0,0.01101]
[1764026124335,0.33425505,88719.0,88711.0,0.01101]
[1764026124536,0.32298351,88719.0,88711.0,0.03556]
[1764026124736,0.32298351,88719.0,88718.0,0.01642]
[1764026124962,0.01395727,88720.0,88718.0,0.01642]
[1764026125136,0.323,88723.0,88719.0,0.04431]
[1764026125540,0.323,88723.0,88720.0,0.02455]
[1764026125987,0.02496593,88723.0,88720.0,0.02455]
[1764026126958,0.323,88720.0,88719.0,0.00334]
[1764026127985,0.54842831,88720.0,88719.0,0.00334]
[1764026128757,0.323,88721.0,88719.0,0.04431]
[1764026129306,0.54842771,88721.0,88720.0,0.01642]
[1764026129506,0.54842771,88721.0,88720.0,0.04097]
[1764026130081,0.02496593,88723.0,88720.0,0.04097]
[1764026130279,0.01127116,88722.0,88721.0,0.01642]
[1764026130497,0.33427116,88722.0,88721.0,0.02455]
[1764026130704,0.33832,88722.0,88711.0,0.01101]
[1764026130911,0.323,88714.0,88707.0,0.01144]
[1764026131124,0.01127255,88711.0,88707.0,0.01144]
[1764026131631,0.01127255,88711.0,88710.0,0.01642]
[1764026132045,0.01127255,88711.0,88710.0,0.04097]
[1764026132637,0.01127217,88714.0,88710.0,0.04097]
[1764026132842,0.01127217,88714.0,88713.0,0.0029]
[1764026133451,0.323,88715.0,88713.0,0.0029]
[1764026133655,0.323,88716.0,88713.0,0.0029]
[1764026133861,0.323,88716.0,88715.0,0.01642]
[1764026134275,0.323,88716.0,88715.0,0.0635141]
[1764026134524,0.00712,88721.0,88715.0,0.0635141]
[1764026134741,0.34139128,88721.0,88720.0,0.01144]
[1764026134946,0.33012,88721.0,88720.0,0.02786]
[1764026135154,0.323,88721.0,88720.0,0.05241]
[1764026135792,0.323,88722.0,88720.0,0.05241]
[1764026135992,0.323,88722.0,88720.0,0.02786]
[1764026137238,0.24641164,88721.0,88720.0,0.02786]
[1764026137459,0.24641164,88721.0,88720.0,0.01144]
[1764026138549,0.01127192,88716.0,88713.0,0.0029]
[1764026138751,0.22544246,88715.0,88713.0,0.0029]
[1764026138959,0.01127192,88716.0,88713.0,0.0029]
[1764026139132,0.22544294,88715.0,88713.0,0.0029]
[1764026140305,0.02099783,88714.0,88713.0,0.0029]
[1764026140501,0.02099783,88714.0,88713.0,0.0039]
[1764026141128,0.02099783,88714.0,88713.0,0.001]
[1764026141129,2.88335783,88714.0,88713.0,0.001]
[1764026141469,2.88335783,88714.0,88706.0,0.00024483]
[1764026141470,0.323,88707.0,88706.0,0.00024483]
[1764026141672,0.39483783,88707.0,88706.0,0.00024483]
[1764026143537,0.04779783,88707.0,88706.0,0.00024483]
[1764026143729,0.25793918,88707.0,88706.0,0.00124483]
[1764026146737,0.29776918,88707.0,88706.0,0.00124483]
[1764026148548,2.62076918,88707.0,88706.0,0.00124483]
[1764026149803,2.62076918,88707.0,88706.0,0.00024483]
[1764026151657,2.64331989,88707.0,88706.0,0.00024483]
[1764026155235,2.65043989,88707.0,88706.0,0.00024483]
[1764026162559,0.02099783,88707.0,88706.0,0.03921483]
[1764026162783,0.02167116,88722.0,88706.0,0.03921483]
[1764026162784,0.01127179,88717.0,88706.0,0.03921483]
[1764026162992,0.33246585,88713.0,88706.0,0.00024483]
[1764026163196,0.01127268,88710.0,88706.0,0.00024483]
[1764026163413,0.323,88712.0,88706.0,0.00024483]
[1764026163617,0.01127255,88711.0,88706.0,0.00024483]
[1764026163893,0.323,88712.0,88706.0,0.00124483]
[1764026164106,0.323,88714.0,88707.0,0.02355]
[1764026164557,0.323,88714.0,88713.0,0.02686]
[1764026164966,0.323,88714.0,88713.0,0.01144]
[1764026165170,0.323,88716.0,88713.0,0.01144]
[1764026165373,0.02098512,88715.0,88713.0,0.01144]
[1764026165598,0.323,88707.0,88706.0,0.00124483]
[1764026165821,0.323,88707.0,88706.0,0.00024483]
[1764026165822,2.35110493,88707.0,88706.0,0.00024483]
[1764026168041,2.34398493,88707.0,88706.0,0.00024483]
[1764026168248,2.35110493,88707.0,88706.0,0.00024483]
[1764026169021,2.02810493,88707.0,88706.0,0.00024483]
[1764026169221,2.04447493,88707.0,88706.0,0.00024483]
[1764026169419,2.06763493,88707.0,88706.0,0.00024483]
[1764026175485,1.87947301,88707.0,88706.0,0.00024483]
[1764026176124,1.87235301,88707.0,88706.0,0.00024483]
[1764026176313,1.83282301,88707.0,88706.0,0.00024483]
[1764026178656,2.15582301,88707.0,88706.0,0.00024483]
[1764026179915,2.18020301,88707.0,88706.0,0.00024483]
[1764026180889,2.15582301,88707.0,88706.0,0.00024483]
[1764026182263,2.17229301,88707.0,88706.0,0.00024483]
[1764026182682,2.19667301,88707.0,88706.0,0.00024483]
[1764026183078,2.20379301,88707.0,88706.0,0.00024483]
[1764026187520,2.16294301,88707.0,88706.0,0.00024483]
[1764026190211,0.35110493,88707.0,88706.0,0.00024483]
[1764026190624,0.34398493,88707.0,88706.0,0.03882483]
[1764026191130,0.34398493,88707.0,88706.0,0.01627483]
[1764026191333,0.34398493,88707.0,88706.0,0.00024483]
[1764026193137,0.34398493,88707.0,88706.0,0.03882483]
[1764026193692,0.34398493,88707.0,88706.0,0.01627483]
[1764026194879,0.34398493,88707.0,88706.0,0.00024483]
[1764026196709,0.34398493,88707.0,88706.0,0.03882483]
[1764026197898,0.34398493,88707.0,88706.0,0.00024483]
[1764026198460,0.38483493,88707.0,88706.0,0.00024483]
[1764026199202,0.36045493,88707.0,88706.0,0.00024483]
[1764026199403,0.34398493,88707.0,88706.0,0.00024483]
[1764026199815,0.34404439,88707.0,88706.0,0.00024483]
[1764026201677,0.56950574,88707.0,88706.0,0.00024483]
[1764026201887,0.61035574,88707.0,88706.0,0.00024483]
[1764026202073,2.61035574,88707.0,88706.0,0.00024483]
[1764026204424,2.61135574,88707.0,88706.0,0.00024483]
[1764026207224,2.67387873,88707.0,88706.0,0.00024483]
[1764026207468,2.78865731,88707.0,88706.0,0.00024483]
[1764026208260,0.22555288,88671.0,88670.0,0.0002]
[1764026208475,0.22555288,88671.0,88670.0,0.00059557]
[1764026208848,0.24148288,88671.0,88670.0,0.00059557]
[1764026209054,0.26418288,88671.0,88670.0,0.00059557]
[1764026209698,0.26418288,88671.0,88670.0,0.00159557]
[1764026210118,0.26418288,88671.0,88670.0,0.00059557]
[1764026211679,2.26418288,88671.0,88670.0,0.00059557]
[1764026213979,2.26418288,88671.0,88670.0,0.00169777]
[1764026216850,2.01593,88671.0,88670.0,0.00169777]
[1764026219051,2.03863,88671.0,88670.0,0.00169777]
[1764026222836,2.0,88671.0,88670.0,0.00169777]
[1764026223043,2.00812,88671.0,88670.0,0.00169777]
[1764026223967,2.00812,88671.0,88670.0,0.05252777]
[1764026223968,0.001,88671.0,88670.0,0.05252777]
[1764026224168,0.01127675,88678.0,88670.0,0.05252777]
[1764026224366,0.33012,88680.0,88678.0,0.02597]
[1764026224580,0.323,88680.0,88679.0,0.01511]
[1764026224916,0.323,88680.0,88678.0,0.01086]
[1764026225037,0.01127637,88681.0,88678.0,0.01086]
[1764026225438,0.00712,88683.0,88678.0,0.00986]
[1764026225638,0.323,88681.0,88678.0,0.00986]
[1764026225858,0.323,88676.0,88670.0,0.01145557]
[1764026226095,0.33427726,88674.0,88670.0,0.01145557]
[1764026226687,0.33427726,88674.0,88671.0,0.02486]
[1764026227087,0.01127726,88674.0,88671.0,0.02486]
[1764026228120,0.323,88676.0,88671.0,0.02486]
[1764026228471,0.323,88679.0,88671.0,0.03613764]
[1764026228603,0.323,88679.0,88671.0,0.02486]
[1764026228800,0.323,88679.0,88678.0,0.01511]
[1764026229230,0.00712,88683.0,88678.0,0.03997]
[1764026229433,0.323,88681.0,88678.0,0.03997]
[1764026229636,0.323,88681.0,88678.0,0.04082719]
[1764026229802,0.323,88681.0,88678.0,0.03997]
[1764026230914,0.323,88681.0,88680.0,0.01511]
[1764026231223,0.323,88681.0,88680.0,0.03997]
[1764026231437,0.33427637,88681.0,88670.0,0.01145557]
[1764026231684,0.323,88679.0,88670.0,0.01145557]
[1764026231880,0.33427662,88679.0,88671.0,0.02486]
[1764026232700,0.323,88679.0,88671.0,0.02486]
[1764026232892,0.23631671,88686.0,88678.0,0.01511]
[1764026233096,0.323,88681.0,88679.0,0.01511]
[1764026233519,0.33427637,88681.0,88674.0,0.02486]
[1764026234131,0.22552447,88683.0,88674.0,0.02486]
[1764026234132,0.323,88683.0,88674.0,0.02486]
[1764026234335,0.01127599,88684.0,88674.0,0.02486]
[1764026234548,0.02099352,88683.0,88675.0,0.01127713]
[1764026234723,0.323,88684.0,88675.0,0.01127713]
[1764026234927,0.02099394,88683.0,88676.0,0.02351]
[1764026235126,0.55980388,88681.0,88680.0,0.00079594]
[1764026235336,0.323,88681.0,88680.0,0.00079594]
[1764026235490,0.323,88681.0,88680.0,0.01736594]
[1764026235698,0.323,88681.0,88680.0,0.04087594]
[1764026236483,0.34400982,88681.0,88680.0,0.04087594]
[1764026238806,0.34400982,88681.0,88680.0,0.01836594]
[1764026239253,0.34400982,88681.0,88680.0,0.00179594]
[1764026239916,0.34400982,88681.0,88680.0,0.01836594]
[1764026240206,0.34400982,88681.0,88680.0,0.04187594]
[1764026240398,0.323,88681.0,88680.0,0.04187594]
[1764026240743,0.01127599,88684.0,88680.0,0.01836594]
[1764026240945,0.22552643,88682.0,88680.0,0.001]
[1764026241142,0.01127611,88683.0,88680.0,0.001]
[1764026241359,0.02101457,88682.0,88680.0,0.001]
[1764026241717,0.01127611,88683.0,88680.0,0.001]
[1764026241929,0.03229034,88682.0,88676.0,0.02351]
[1764026242073,0.01127624,88682.0,88676.0,0.02351]
[1764026242475,0.01127662,88679.0,88676.0,0.02351]
[1764026242885,0.01127688,88677.0,88670.0,0.03496557]
[1764026243323,0.01127713,88675.0,88670.0,0.01145557]
[1764026244112,0.01127688,88677.0,88670.0,0.01145557]
[1764026244320,1.21091854,88680.0,88671.0,0.02351]
[1764026244524,0.60545927,88680.0,88672.0,0.01127751]
[1764026244697,0.61673576,88680.0,88671.0,0.02351]
[1764026245121,0.01127675,88678.0,88676.0,0.001]
[1764026245361,0.01127675,88678.0,88671.0,0.02351]
[1764026245770,0.01127688,88677.0,88670.0,0.01145557]
[1764026245906,0.01127675,88678.0,88670.0,0.01145557]
[1764026246820,0.01127675,88678.0,88670.0,0.01245557]
[1764026247058,0.01127675,88678.0,88677.0,0.00088781]
[1764026247465,0.33427649,88680.0,88677.0,0.01745781]
[1764026247788,0.33427649,88680.0,88677.0,0.01657]
[1764026248324,0.323,88686.0,88679.0,0.01657]
[1764026248529,0.02101834,88685.0,88680.0,0.01657]
[1764026248746,0.33427573,88686.0,88679.0,0.01086]
[1764026248747,0.02101834,88684.0,88679.0,0.01086]
[1764026248951,0.02101834,88683.0,88679.0,0.01086]
[1764026249151,0.323,88686.0,88685.0,0.01657]
[1764026249353,0.02351,88692.0,88689.0,0.23678184]
[1764026249552,2.0,88702.0,88691.0,0.0382051]
[1764026249731,0.35529527,88701.0,88691.0,0.01036]
[1764026249951,0.02102144,88700.0,88692.0,0.02351]
[1764026250287,0.00712,88706.0,88700.0,0.01657]
[1764026250492,2.02101383,88705.0,88701.0,0.01657]
[1764026250785,0.02101383,88704.0,88701.0,0.02351]
[1764026250984,0.02101383,88703.0,88701.0,0.02351]
[1764026251186,0.02101383,88702.0,88701.0,0.02351]
[1764026251431,0.01657,88710.0,88708.0,0.01061]
[1764026251626,0.34400857,88709.0,88708.0,0.01061]
[1764026251826,0.34400857,88709.0,88708.0,0.00961]
[1764026253330,0.01127357,88703.0,88700.0,0.01086]
[1764026253632,0.01127344,88704.0,88696.0,0.01061]
[1764026253974,0.323,88706.0,88697.0,0.02351]
[1764026253975,0.92845927,88706.0,88697.0,0.02351]
[1764026254167,0.323,88706.0,88697.0,0.02351]
[1764026255144,0.01127268,88710.0,88697.0,0.02351]
[1764026255145,0.323,88709.0,88705.0,0.02618]
[1764026255373,0.323,88709.0,88706.0,0.02351]
[1764026255519,0.323,88709.0,88708.0,0.01657]
[1764026256169,0.00712,88710.0,88708.0,0.04008]
[1764026256372,0.00712,88710.0,88709.0,0.01657]
[1764026256552,0.323,88712.0,88709.0,0.04008]
[1764026256723,0.01127281,88709.0,88705.0,0.00961]
[1764026256927,0.33427268,88710.0,88705.0,0.00961]
[1764026257149,0.323,88710.0,88706.0,0.02351]
[1764026257351,0.323,88710.0,88709.0,0.01657]
[1764026257753,0.323,88710.0,88709.0,0.04008]
[1764026257968,0.33427154,88719.0,88709.0,0.04008]
[1764026258169,0.02098082,88718.0,88717.0,0.01657]
[1764026258365,0.33427154,88719.0,88717.0,0.01657]
[1764026258564,0.33427154,88719.0,88718.0,0.02743]
[1764026258773,0.35524724,88719.0,88718.0,0.02743]
[1764026259398,0.33427154,88719.0,88718.0,0.02743]
[1764026259819,0.01127217,88714.0,88710.0,0.01086]
[1764026259954,0.01127243,88712.0,88710.0,0.01086]
[1764026260337,0.54845136,88711.0,88710.0,0.01086]
[1764026260759,0.323,88711.0,88710.0,0.01086]
[1764026260977,0.323,88711.0,88710.0,0.02743]
[1764026263137,0.54845118,88711.0,88710.0,0.02743]
[1764026263348,0.54845118,88711.0,88710.0,0.01086]
[1764026264195,0.323,88711.0,88710.0,0.01086]
[1764026265854,0.32074559,88711.0,88710.0,0.01086]
[1764026271045,0.32074559,88711.0,88710.0,0.0264]
[1764026271250,0.32074559,88711.0,88710.0,0.05117]
[1764026273085,0.32074559,88711.0,88710.0,0.05103475]
[1764026273933,0.32074559,88711.0,88710.0,0.02626475]
[1764026274974,0.32074559,88711.0,88710.0,0.01072475]
[1764026275183,0.22546389,88706.0,88705.0,0.00961]
[1764026275394,0.01127294,88708.0,88705.0,0.00961]
[1764026275395,0.23673424,88708.0,88705.0,0.00961]
[1764026275604,0.22546389,88706.0,88705.0,0.00961]
[1764026276013,0.23673424,88708.0,88698.0,0.00024485]
[1764026276014,0.0112737,88702.0,88698.0,0.00024485]
[1764026276590,0.0112737,88702.0,88698.0,0.02501485]
[1764026276810,0.0112737,88702.0,88698.0,0.00024485]
[1764026277324,0.0112737,88702.0,88698.0,0.00124485]
[1764026277504,0.01127357,88703.0,88698.0,0.00124485]
[1764026278376,0.01127357,88703.0,88698.0,0.02601485]
[1764026278892,0.323,88709.0,88702.0,0.01554]
[1764026279017,0.02100697,88708.0,88703.0,0.01554]
[1764026279220,0.323,88709.0,88707.0,0.02515]
[1764026279427,0.02101895,88708.0,88707.0,0.02515]
[1764026279628,0.02101895,88708.0,88707.0,0.04992]
[1764026281077,0.02101895,88708.0,88707.0,0.02515]
[1764026282663,0.02101895,88708.0,88707.0,0.04992]
[1764026283764,0.02101895,88708.0,88707.0,0.05092]
[1764026285400,0.323,88715.0,88709.0,0.01127281]
[1764026285652,0.02103441,88714.0,88713.0,0.01554]
[1764026285824,0.02103441,88714.0,88710.0,0.03604268]
[1764026285997,0.02103441,88713.0,88710.0,0.02477]
[1764026286181,0.02103441,88712.0,88711.0,0.02477]
[1764026286382,0.02103441,88712.0,88711.0,0.03526]
[1764026286583,0.02103441,88712.0,88711.0,0.0508]
[1764026286811,0.323,88719.0,88713.0,0.0112723]
[1764026287028,0.02103736,88718.0,88713.0,0.0112723]
[1764026287239,0.02103736,88717.0,88714.0,0.03604217]
[1764026287440,0.02103736,88716.0,88714.0,0.02477]
[1764026287607,0.01515325,88723.0,88714.0,0.23671527]
[1764026287810,0.01515325,88723.0,88722.0,0.02603]
[1764026288223,0.01515325,88723.0,88722.0,0.0508]
[1764026288422,0.03618844,88723.0,88722.0,0.0508]
[1764026289011,0.01515325,88723.0,88722.0,0.0508]
[1764026290150,0.0009943,88723.0,88722.0,0.27622323]
[1764026290352,0.0009943,88723.0,88722.0,0.0508]
[1764026291022,0.0009943,88723.0,88722.0,0.27622323]
[1764026291655,0.0009943,88723.0,88722.0,0.0518]
[1764026292678,0.0009943,88723.0,88722.0,0.27722323]
[1764026293154,0.0009943,88723.0,88722.0,0.28722323]
[1764026293570,0.0009943,88723.0,88722.0,0.27722323]
[1764026293773,0.00014914,88723.0,88722.0,0.27722323]
[1764026294213,0.323,88739.0,88730.0,0.03857014]
[1764026294432,0.02099504,88738.0,88730.0,0.03857014]
[1764026294605,0.3231187,88739.0,88730.0,0.03857014]
[1764026294812,0.02099508,88738.0,88731.0,0.02458]
[1764026295050,0.3231187,88739.0,88731.0,0.02458]
[1764026295268,0.02099015,88738.0,88731.0,0.02458]
[1764026295474,0.0002753,88732.0,88731.0,0.02458]
[1764026295932,0.0002753,88732.0,88731.0,0.04115]
[1764026296741,0.0002753,88732.0,88731.0,0.26655036]
[1764026297755,0.0002753,88732.0,88731.0,0.26755036]
[1764026298591,0.0002753,88732.0,88731.0,0.26955036]
[1764026299420,0.0002753,88732.0,88731.0,0.26755036]
[1764026299840,0.0002753,88732.0,88731.0,0.26855036]
[1764026301843,0.0002753,88732.0,88731.0,0.27855036]
[1764026302479,0.0002753,88732.0,88731.0,0.27755036]
[1764026304119,0.0002753,88732.0,88731.0,0.27955036]
[1764026304331,0.0002753,88732.0,88731.0,0.04415]
[1764026304544,0.0002753,88732.0,88731.0,0.06669003]
[1764026304937,0.0002753,88732.0,88731.0,0.06469003]
[1764026305294,0.0002753,88732.0,88731.0,0.06669003]
[1764026305624,0.0002753,88732.0,88731.0,0.06369003]
[1764026305804,0.0002753,88732.0,88731.0,0.06469003]
[1764026306001,0.0002753,88732.0,88731.0,0.06569003]
[1764026306464,0.0002753,88732.0,88731.0,0.06469003]
[1764026309727,0.0002753,88732.0,88731.0,0.29009039]
[1764026309931,0.0002753,88732.0,88731.0,0.04215]
[1764026310139,0.0002753,88732.0,88731.0,0.06469003]
[1764026310550,0.0002753,88732.0,88731.0,0.07469003]
[1764026311052,0.0002753,88732.0,88731.0,0.06469003]
[1764026312659,0.0002753,88732.0,88731.0,0.07469003]
[1764026313045,0.0002753,88732.0,88731.0,0.06469003]
[1764026313239,0.0002753,88732.0,88731.0,0.07469003]
[1764026314062,0.0002753,88732.0,88731.0,0.04115]
[1764026314392,0.0002753,88732.0,88731.0,0.04315]
[1764026315140,0.83054404,88750.0,88736.0,0.01126938]
[1764026315343,0.02098485,88749.0,88742.0,0.01657]